Cogmind - Beta 15 @@@ ROGUE MODE // 2025.08.05 @ 20:42:51 Player: daniels1231 Result: Self-destructed Performance ------------- Evolutions (2) 1000 Regions Visited (5) 1000 Robots Destroyed (20) 100 Value Destroyed (601) 601 Prototype IDs (2) 40 Alien Tech Used (0) 0 Bonus (104) 104 TOTAL SCORE: 2845 Bonus ------- Follower Combat Kills 104 Cogmind --------- Core Integrity 550/550 Matter 261/300 Energy 100/100 System Corruption 0% Temperature Cool (0) Movement Treading (160) Location -8/Materials Parts ------- > --- POWER (2) -------- (None) > --- PROPULSION (2) --- Light Treads Light Treads > --- UTILITY (4) ------ Medium Storage Unit Utility Shielding Shield Generator Thief Drone Bay (0/3) > --- WEAPON (3) ------- Beam Cannon Heavy Battle Rifle > --- INVENTORY (10) --- Aluminum Leg Aluminum Leg Flight Unit Flight Unit VTOL Module Improved Flight Unit Large Storage Unit Light Assault Rifle Heavy Assault Rifle Welding Torch Peak State ------------ > --- POWER ------------ Light Ion Engine > --- PROPULSION ------- Light Treads Improved Flight Unit > --- UTILITY ---------- Medium Storage Unit Light Armor Plating Thief Drone Bay > --- WEAPON ----------- Beam Cannon Heavy Battle Rifle > --- INVENTORY -------- Light Treads VTOL Module Medium Storage Unit Large Storage Unit Beam Cannon Assault Rifle Heavy Assault Rifle Welding Torch [Rating: 20] Favorites ----------- Power Light Ion Engine Engine Light Ion Engine Propulsion Light Treads Treads Light Treads Flight Unit VTOL Module Utility Thief Drone Bay Device Thief Drone Bay Storage Medium Storage Unit Protection Utility Shielding Weapon Beam Cannon Energy Gun Medium Laser Energy Cannon Beam Cannon Ballistic Gun Heavy Battle Rifle Launcher Grenade Launcher Build | -11 -10 -10 -9 -9 -8 ------- Run | Yrd Mat Min Mat Min Mat Slots Evolved 4 | . . . 2 . 2 Power 1 | . . . . . 1 Propulsion . | . . . . . . Utility 2 | . . . 2 . . Weapon 1 | . . . . . 1 Parts Attached 21 | 5 1 4 6 5 . Power 2 | 1 . 1 . . . Engine 2 | 1 . 1 . . . Core . | . . . . . . Reactor . | . . . . . . Propulsion 7 | 2 . . 3 2 . Treads 3 | 2 . . 1 . . Leg . | . . . . . . Wheel . | . . . . . . Hover . | . . . . . . Flight 4 | . . . 2 2 . Utility 7 | . . 2 2 3 . Device 3 | . . 2 . 1 . Storage 2 | . . . 1 1 . Processor . | . . . . . . Hackware . | . . . . . . Protection 2 | . . . 1 1 . Artifact . | . . . . . . Weapon 5 | 2 1 1 1 . . Energy Gun 1 | 1 . . . . . Energy Cannon 1 | . . 1 . . . Ballistic Gun 2 | 1 . . 1 . . Ballistic Cannon . | . . . . . . Launcher 1 | . 1 . . . . Special Weapon . | . . . . . . Impact Weapon . | . . . . . . Slashing Weapon . | . . . . . . Piercing Weapon . | . . . . . . Special Melee Weapon . | . . . . . . Unidentified Prototypes 2 | . . 1 1 . . Parts Lost 4 | . . 2 1 1 . Power 1 | . . . . 1 . Propulsion . | . . . . . . Utility 1 | . . . 1 . . Weapon 2 | . . 2 . . . Highest Loss Streak 2 | . . 2 1 1 . To Critical Strikes . | . . . . . . Average Backups 5 | 2 4 3 7 8 10 Power . | . 1 . . . . Propulsion 1 | . . . 1 4 6 Utility . | . . . 2 1 1 Weapon 2 | 1 3 2 2 2 2 Tool/Special . | . . . . . . Unused Backups 13 | . . 2 1 4 6 Power . | . . . . . . Propulsion 5 | . . 1 . 2 2 Utility 2 | . . . 1 . 1 Weapon 5 | . . 1 . 2 2 Tool/Special 1 | . . . . . 1 Average Slot Usage (%) 83 | . 71 85 79 95 72 Engine 11 | . 14 14 11 8 . Treads 22 | . 28 28 17 20 18 Device 12 | . . 14 11 18 18 Storage 6 | . . . 9 13 9 Protection 5 | . . . 7 10 9 Energy Gun 3 | . 14 7 . . . Energy Cannon 8 | . . 6 11 11 9 Ballistic Gun 8 | . . 6 11 11 9 Launcher 3 | . 13 7 . . . Peak Build Rating 20 | 5 5 13 20 20 19 Average Rating 11 | 4 4 11 16 19 19 On Entrance 9 | . 5 5 12 16 19 Naked Turns . | . . . . . . Heaviest Build 35 | 7 8 13 27 35 24 Greatest Support 40 | 40 40 40 40 40 40 Greatest Overweight (x) 6 | . . . 6 3 . Average Overweight (x) . | . . . . . . Largest Inventory Capacity 10 | 5 5 5 10 10 10 Average Capacity 6 | 5 5 5 9 10 10 Most Carried 10 | 5 5 5 10 10 10 Average Carried 5 | 2 4 3 7 8 10 Final Capacity 10 | 5 5 5 10 10 10 Final Carried 10 | 2 5 4 10 10 10 Class Distribution -------------------- 100% | Mutant Dominant Class ---------------- Mutant | -10/Materials Mutant | -10/Mines Mutant | -9/Materials Mutant | -9/Mines Mutant | -8/Materials Resources | -11 -10 -10 -9 -9 -8 ----------- Run | Yrd Mat Min Mat Min Mat Matter Collected 719 | 203 36 220 144 116 . Remotely . | . . . . . . Salvage Created 560 | . 90 47 317 106 . Parts 38 | . 7 2 22 7 . Haulers Intercepted . | . . . . . . Recyclers Shooed . | . . . . . . Parts Field Recycled . | . . . . . . Retrieved Matter . | . . . . . . Parts Self-Destructed . | . . . . . . Prevented . | . . . . . . Kills | -11 -10 -10 -9 -9 -8 ------- Run | Yrd Mat Min Mat Min Mat Combat Hostiles Destroyed 19 | . 3 5 7 4 . Guns 7 | . . 1 4 2 . Cannons 5 | . . . 3 2 . AOE 7 | . 3 4 . . . Classes Destroyed 9 | . 3 1 4 1 . Worker 1 | . 1 . . . . Operator 1 | . 1 . . . . Drone 1 | . . . . 1 . Watcher 2 | . . . 2 . . Swarmer 4 | . . . 1 3 . Grunt 9 | . 3 2 3 1 . Duelist 1 | . . . 1 . . Sentry 2 | . . . 2 . . Assembled 3 | . . 3 . . . Best Kill Streak 5 | . 3 2 5 2 . Combat Bots Only 4 | . 2 2 4 2 . Max Kills in Single Turn 2 | . 2 1 2 2 . Gunslinging . | . . . . . . Exploded 2 | . 2 1 . . . Melee . | . . . . . . Uniques/NPCs Destroyed . | . . . . . . Combat | -11 -10 -10 -9 -9 -8 -------- Run | Yrd Mat Min Mat Min Mat Hostile Shots Fired 95 | . 9 15 30 41 . Missed 28 | . 5 1 11 11 . Hits 67 | . 4 14 19 30 . Melee 3 | . . 2 1 . . Projectile 64 | . 4 12 18 30 . Damage Taken 917 | . 58 307 300 252 . Core 118 | . 10 61 35 12 . Absorbed by Shields 43 | . . . . 43 . Redirected to Shielding 25 | . . . . 25 . Core Remaining (%) 86 | 100 . 71 . 88 . Volleys Fired 54 | . 5 12 23 13 1 Largest 2 | . 2 2 2 2 2 Hottest 93 | . 80 80 93 93 93 Shots Fired 107 | . 10 23 46 26 2 Gun 53 | . 5 11 23 13 1 Cannon 40 | . . 3 23 13 1 Launcher 14 | . 5 9 . . . Special . | . . . . . . Kinetic 40 | . . 3 23 13 1 Thermal 53 | . 5 11 23 13 1 Explosive 14 | . 5 9 . . . Electromagnetic . | . . . . . . Robot Hit Streak 7 | . 1 6 7 3 . Robot Miss Streak 5 | . 1 2 3 5 2 Penetration Max . | . . . . . . Secondary Targets . | . . . . . . Shots Hit Robots 55 | . 4 13 28 10 . Core Hits 40 | . 10 10 13 7 . Critical Kills . | . . . . . . Critical Parts Destroyed . | . . . . . . Critical Strikes . | . . . . . . Melee Attacks . | . . . . . . Impact . | . . . . . . Slashing . | . . . . . . Piercing . | . . . . . . Sneak Attacks . | . . . . . . Combat Hostiles . | . . . . . . Follow-up Attacks . | . . . . . . Damage Inflicted 1465 | . 235 400 556 274 . Guns 465 | . . 74 277 114 . Cannons 474 | . . 36 279 159 . Explosions 525 | . 235 290 . . . Melee . | . . . . . . Ramming 1 | . . . . 1 . Kinetic 401 | . . 10 277 114 . Thermal 538 | . . 100 279 159 . Explosive 525 | . 235 290 . . . Electromagnetic . | . . . . . . Impact . | . . . . . . Slashing . | . . . . . . Piercing . | . . . . . . Highest Corruption . | . . . . . . Average Corruption . | . . . . . . Corruption Purged . | . . . . . . Corruption Blocked . | . . . . . . Overload Shots . | . . . . . . Overflow Damage 14 | . . . . 14 . Projectiles 14 | . . . . 14 . Explosions . | . . . . . . Melee . | . . . . . . Knockbacks . | . . . . . . Impact . | . . . . . . Kinetic . | . . . . . . Secondary . | . . . . . . Self-Inflicted Damage 91 | . . 91 . . . Shots 3 | . . 3 . . . Rammed 1 | . . . . 1 . Targets Rammed 1 | . . . . 1 . Kicked . | . . . . . . Crushed . | . . . . . . Highest Temperature 267 | . 54 141 267 182 . Average Temperature 66 | . 23 48 78 73 . Received Heat Transfer 280 | . 30 86 114 50 . Siege Activations . | . . . . . . Martial Activations . | . . . . . . Shielding Activations . | . . . . . . Robots Disrupted . | . . . . . . Combat Hostiles . | . . . . . . Robots Corrupted . | . . . . . . Combat Hostiles . | . . . . . . Parts Fried . | . . . . . . Impact Corruptions . | . . . . . . Robots Melted . | . . . . . . Combat Hostiles . | . . . . . . Parts Melted 1 | . . . 1 . . Heat Transferred 1184 | . . 259 592 333 . Parts Sabotaged . | . . . . . . Parts Stolen . | . . . . . . Parts Stripped . | . . . . . . Power Chain Reactions . | . . . . . . Alert | -11 -10 -10 -9 -9 -8 ------- Run | Yrd Mat Min Mat Min Mat Maximum Alert Level . | . . . . . . Low Security (%) 100 | 100 100 100 100 100 100 Level 1 . | . . . . . . Level 2 . | . . . . . . Level 3 . | . . . . . . Level 4 . | . . . . . . Level 5 . | . . . . . . High Security . | . . . . . . Max Security . | . . . . . . Peak Influence 106 | . 75 75 106 84 . Initial 39 | . . 14 . 39 . Average 12 | . 18 10 17 30 . Influence Increases 831 | . 133 107 316 275 . Destroy 0b10 Robot/C 440 | . 60 40 220 120 . Destroy 0b10 Robot/NC 25 | . 10 . 15 . . Destroy Leader 74 | . 10 10 54 . . Allied During Kill 14 | . . . 11 3 . Disable Machine 45 | . 15 15 15 . . Destroy Structure 68 | . 23 42 1 2 . Lose Combat Pursuer 165 | . 15 . . 150 . Influence Decreases 831 | . 95 145 216 375 . Entered New Map 85 | . . 24 . 61 . Time Decay 686 | . 95 101 186 304 . Lost Part 40 | . . 20 10 10 . Lost Ally 20 | . . . 20 . . Squads Dispatched 3 | . 1 . 1 . 1 Investigation . | . . . . . . Extermination . | . . . . . . Reinforcement 3 | . 1 . 1 . 1 Assault . | . . . . . . Garrison . | . . . . . . Intercept . | . . . . . . Searches Triggered . | . . . . . . Construction Impeded . | . . . . . . Haulers Reinforced . | . . . . . . Active Scanning Responses . | . . . . . . Cargo Convoy Interrupts . | . . . . . . Stealth | -11 -10 -10 -9 -9 -8 --------- Run | Yrd Mat Min Mat Min Mat Distress Signals 3 | . 1 . 2 . . Communications Jammed . | . . . . . . Distress Signals . | . . . . . . Times Spotted 52 | . 9 8 21 11 3 Peak Tracking Total 8 | . 4 2 8 4 1 Tactical Retreats 8 | . 1 . . 7 . Traps | -11 -10 -10 -9 -9 -8 ------- Run | Yrd Mat Min Mat Min Mat Traps Triggered . | . . . . . . Indirectly . | . . . . . . Trap Hack Attempts . | . . . . . . Triggered . | . . . . . . Disarmed . | . . . . . . Reprogrammed . | . . . . . . Reused . | . . . . . . Traps Extracted . | . . . . . . Installed . | . . . . . . Triggered . | . . . . . . Machines | -11 -10 -10 -9 -9 -8 ---------- Run | Yrd Mat Min Mat Min Mat Machines Disabled 6 | . 4 1 1 . . Max in Single Turn 3 | . 3 1 1 . . Machines Repaired . | . . . . . . Machines Dismantled . | . . . . . . Machines Sabotaged . | . . . . . . Overloaded Fab Kills . | . . . . . . Hacking | -11 -10 -10 -9 -9 -8 --------- Run | Yrd Mat Min Mat Min Mat Machines Accessed 4 | . 1 1 2 . . Terminals 2 | . 1 . 1 . . Fabricators . | . . . . . . Repair Stations . | . . . . . . Recycling Units 1 | . . . 1 . . Scanalyzers . | . . . . . . Garrison Access . | . . . . . . Total Hacks 5 | . 1 1 3 . . Successful 3 | . . 1 2 . . Failed 2 | . 1 . 1 . . Catastrophic 1 | . 1 . . . . Database Lockouts . | . . . . . . Manual . | . . . . . . Terminals 2 | . 1 . 1 . . Fabricators . | . . . . . . Repair Stations . | . . . . . . Recycling Units 2 | . . . 2 . . Scanalyzers . | . . . . . . Garrison Access . | . . . . . . Terminal Hacks 1 | . . 1 . . . Open Door 1 | . . 1 . . . Fabricator Hacks . | . . . . . . Repair Station Hacks . | . . . . . . Recycling Unit Hacks 2 | . . . 2 . . Process 1 | . . . 1 . . Report Inventory 1 | . . . 1 . . Scanalyzer . | . . . . . . Garrison Access Hacks . | . . . . . . Unauthorized Hacks . | . . . . . . Terminals . | . . . . . . Fabricators . | . . . . . . Repair Stations . | . . . . . . Recycling Units . | . . . . . . Scanalyzers . | . . . . . . Garrison Access . | . . . . . . Data Cores Recovered . | . . . . . . Used . | . . . . . . Hacking Detections 3 | . 1 . 2 . . Full Trace Events . | . . . . . . Feedback Events . | . . . . . . Feedback Blocked . | . . . . . . Robot Schematics Acquired . | . . . . . . Robots Built . | . . . . . . Authchips . | . . . . . . Time . | . . . . . . Total Robot Build Rating . | . . . . . . Part Schematics Acquired . | . . . . . . Parts Built . | . . . . . . Authchips . | . . . . . . Time . | . . . . . . Total Part Build Rating . | . . . . . . Parts Repaired . | . . . . . . Time . | . . . . . . Parts Recycled . | . . . . . . Recycled Matter 218 | . . . 218 . . Retrieved Matter . | . . . . . . Retrieved Components . | . . . . . . Parts Scanalyzed . | . . . . . . Part Schematics Acquired . | . . . . . . Parts Damaged . | . . . . . . Bothacking | -11 -10 -10 -9 -9 -8 ------------ Run | Yrd Mat Min Mat Min Mat Used RIF Installer . | . . . . . . Robots Hacked . | . . . . . . Non-combat . | . . . . . . Combat . | . . . . . . Robot Hacks Applied . | . . . . . . Relay Couplers Released . | . . . . . . Fabnet Peak Effective % . | . . . . . . Robots Rewired . | . . . . . . Allies Hacked . | . . . . . . Hacks Repelled . | . . . . . . Allies | -11 -10 -10 -9 -9 -8 -------- Run | Yrd Mat Min Mat Min Mat Total Allies 4 | . . 4 . . . Largest Group 3 | . . 3 3 . . Highest-Rated Group 55 | . . 55 55 . . Highest-Rated Ally 31 | . . 31 31 . . Total Orders . | . . . . . . Ally Attacks 85 | . . 19 38 28 . Total Damage 483 | . . 107 255 121 . Kills 11 | . . 4 5 2 . Allies Corrupted . | . . . . . . Allies Melted . | . . . . . . Intel | -11 -10 -10 -9 -9 -8 ------- Run | Yrd Mat Min Mat Min Mat Active Infowar (turns) 141 | . . 141 . . . Seismic 141 | . . 141 . . . Robot Analysis Total . | . . . . . . Derelict Logs Recovered 2 | . . . . 2 . Drone Launches 10 | . . . 5 5 . Drone Recoveries 7 | . . . 3 4 . Exploration | -11 -10 -10 -9 -9 -8 ------------- Run | Yrd Mat Min Mat Min Mat Turns Passed 3906 | 1209 362 692 851 715 77 Spaces Moved 1893 | 455 215 397 402 378 46 Core 24 | 24 . . . . . Treads 1855 | 431 215 397 398 368 46 Legs . | . . . . . . Wheels . | . . . . . . Hover . | . . . . . . Flight 14 | . . . 4 10 . Fastest Speed 50 | 50 160 160 160 160 160 Average Speed 165 | 154 160 160 188 163 160 Slowest Speed 535 | 160 160 160 535 274 160 Overloaded Moves . | . . . . . . Propulsion Burnouts . | . . . . . . Robots Hopped . | . . . . . . Potential Cave-ins . | . . . . . . Cave-ins Triggered . | . . . . . . Exploration Rate (%) 40 | 41 33 84 34 46 7 Regions Visited 5 Branch Regions 2 Pre-discovered Areas 2 | . . . . 2 . Known Exits Taken . | . . . . . . Unknown Exits Taken 5 | 1 1 1 1 1 . Scrap Searched . | . . . . . . Spaces Dug 4 | . 4 . . . . Terrain Destroyed 88 | . 28 57 1 2 . Melee . | . . . . . . Projectile 3 | . . . 1 2 . AOE 85 | . 28 57 . . . Terrain Rammed . | . . . . . . Walls Destroyed . | . . . . . . Machines Disabled . | . . . . . . Actions | -11 -10 -10 -9 -9 -8 --------- Run | Yrd Mat Min Mat Min Mat Total 2583 | 963 224 433 458 458 47 Wait 542 | 497 . 6 4 35 . Move 1888 | 454 214 396 401 377 46 Hop . | . . . . . . Pick Up 36 | 7 3 7 12 7 . Fast Attach . | . . . . . . Attach 29 | 5 1 5 7 11 . Detach 12 | . 1 1 5 5 . Swap 3 | . . 1 1 1 . Drop 18 | . . 5 5 8 . Fire 54 | . 5 12 23 13 1 Melee . | . . . . . . Ram . | . . . . . . Kick . | . . . . . . Crush 1 | . . . . 1 . Escape Stasis . | . . . . . . Rewire . | . . . . . . Trap . | . . . . . . Miscellaneous . | . . . . . . Route ------- -11/Scrapyard -10/Materials (discovered 2 exits: *Mat / *Min) -10/Mines (discovered 3 exits: *Mat x2 / [*Sub]) -9/Materials -9/Mines -8/Materials (discovered 1 exit: Sto) History --------- Turn | Location | Event 14 | -11/Scrapyard | Discovered new exit (range 16) 1210 | -11/Scrapyard | Entered Materials 1211 | -10/Materials | Build established: Mutant 1503 | -10/Materials | Discovered new exit (range 10) 1535 | -10/Materials | Discovered new exit (range 15) 1572 | -10/Materials | Entered Mines 1634 | -10/Mines | Assembled infested the area 1657 | -10/Mines | Found the Drone Emporium 1671 | -10/Mines | Found Prototype Device 1672 | -10/Mines | Identified Thief Drone Bay 1925 | -10/Mines | Assisted by bots powering up and referring to "LRC-V3" 2178 | -10/Mines | A weapon hastily lodged in a ceiling crevice suddenly fell to the ground 2222 | -10/Mines | Discovered new exit (range 9) 2230 | -10/Mines | Discovered new exit (range 7) 2232 | -10/Mines | Discovered new exit (range 10) 2242 | -10/Mines | Received a Mining Laser from a helpful Derelict 2264 | -10/Mines | Entered Materials 2264 | -9/Materials | Accompanied by 3 allies 2264 | -9/Materials | Evolved 2 slots: Utility x2 3086 | -9/Materials | Discovered new exit (range 14) 3115 | -9/Materials | Entered Mines 3116 | -9/Mines | Learned location of Storage (-8) 3128 | -9/Mines | Met a Derelict bent on vengeance 3373 | -9/Mines | Discovered new exit (range 7) 3392 | -9/Mines | Learned location of Zion (-7) 3830 | -9/Mines | Entered Materials 3830 | -8/Materials | Evolved 2 slots: Power x1, Weapon x1 3831 | -8/Materials | Identified exit to Storage 3907 | -8/Materials | Self-destructed Last Messages --------------- Bay. 03639_ G-34 Mercenary suffers critical hit (Burn). 03644_ Destroyed Mak. Microthruster. 03644_ Thief Drone destroyed. 03644_ G-34 Mercenary destroyed. 03652_ Lgt. Ion Engine destroyed. 03659_ Destroyed Particle Gun. 03670_ Acquired 28 matter. 03672_ Acquired 34 matter. 03675_ Acquired Aluminum Leg. 03679_ U-05 Engineer builds a Wall. PARAMETERS=POWER+1,WEAPON+1 LOCATION=UNKNOWN GOAL=ESCAPE Loading 1 Storage entrance... 03849_ O-16 Technician: "IFF HANDSHAKE FAILED. SECURING TERMINAL." 03856_ ALERT: Hostiles spotted, dispatching reinforcements to Terminal M009. Map ----- +----------------------------------------------------+ | ?????????????????????????????????????????????????? | | ?????????????????????????????????????????????????? | | ?????????????????????????????????????????????????? | | ?????????????????????????????????????????????????? | | ?????????????????????????????????????????????????? | | ?????????????????????????????????????????????????? | | ?????????????????????????????????????????????????? | | ?????????????????????????????????????????????????? | | ?????????????????????????????????????????????????? | | ?????????????????????????????????????????????????? | | ??????????????????????????????????? ?????????????? | | ??????????????????????????????????? ?????????????? | | ?????????????????????######???????? ?????????????? | | ???????????????????? #??????? #????????????? | | ?????????????? ?? #??????? #????????????? | | ?????????????? #??????? #########????? | | ????????????? #??????# ## """ #????? | | ?????????????" #??????# ## """ #????? | | ??????????????" #??????# ## """ #????? | | ?????????????"" #??????# ## #????? | | ?????????????"" "" #??????# ## #????? | | ???????????""" T" ######## ## /#????? | | ??????????? g "" ####+#######?? | | ?????????? g ! #?? | | ?????????? #?? | | ??????????????# @ #?? | | ??????????????# ##########+### #?? | | ??????????????## ####+###??????? # #?? | | ???????????????# ??????????????# # #?? | | ???????????????# ???????????????# # ### | | ???????????????# ?????????????????# # | | ???????????????# ??????????????????# # | | ?????????????? ???????????????????# # | | ?????????????##?????????????????????############## | | ?????????????????????????????????????????????????? | | ?????????????????????????????????????????????????? | | ?????????????????????????????????????????????????? | | ?????????????????????????????????????????????????? | | | | | | | | | | | | | | | | | | | | | | | | | +----------------------------------------------------+ Best States ------------- Heat Dissipation 31 Energy Generation 10 Energy Capacity 125 Matter Stores 300 Matter Capacity 300 Sight Range 16 Terrain Scan Density 10 Armor Coverage 150 Utility Shielding 33 Evasion (%) 50 Recoil Reduction 2 Item Schematics ----------------- None Robot Schematics ------------------ None Fabricated ------------ Nothing Repaired ---------- Nothing Alien Tech Used ----------------- None Achievements -------------- I Survived The Infestation Storm Trooper Challenges ------------ None Game ------ Seed HugeDamperMultitool Manual? 0 Play Time 00:23:43 Cumulative 2.9 hours Start 2025.08.05 @ 20:18:44 End 2025.08.05 @ 20:42:51 Sessions 1 Manual Loads 0 Difficulty Rogue Special Mode None Game No. 6 Rogue 2 Adventurer 4 Explorer 0 Win Type - Total 0 Types 0/0/0/0/0/0/0/0/0/0 Lore% 1 Gallery% 6 Achievement% 10 Wizard Run 0 Options --------- Layout 1 ASCII 0 Keyboard 0 Movement Arrows Keybinds 0 Fullscreen 2 Font 32/SmallcapsGlow Map View 50x35 Zoom Use 0% Tactical HUD 1 Map Filters NONE Filters NONE Steam 1 RUN: 69beb19f-f7bb-4424-986d-cb7da4a1fb70